[Event "Early-Titled-Tuesday-Blitz-February-27-2024"]
[Site "Chess.com"]
[Date "2024.02.27"]
[Round "2"]
[White "regenda"]
[Black "Aygehovit1992"]
[Result "0-1"]
[WhiteElo "2263"]
[BlackElo "2681"]
[TimeControl "180+1"]
[EndTime "8:17:29 PST"]
[Termination "Aygehovit1992 won on time"]

1. Nf3 {[%clk 0:03:00.9]} 1... Nf6 {[%clk 0:02:59.6]} 2. g3 {[%clk 0:03:00]}
2... b5 {[%clk 0:02:59.1]} 3. Bg2 {[%clk 0:02:56.9]} 3... Bb7 {[%clk 0:02:59.4]}
4. O-O {[%clk 0:02:57.6]} 4... e6 {[%clk 0:02:58.1]} 5. d3 {[%clk 0:02:56.9]}
5... c5 {[%clk 0:02:55.8]} 6. e4 {[%clk 0:02:54.2]} 6... d6 {[%clk 0:02:55.5]}
7. Re1 {[%clk 0:02:48.3]} 7... Nbd7 {[%clk 0:02:55.5]} 8. Nc3 {[%clk 0:02:43.6]}
8... b4 {[%clk 0:02:53.2]} 9. Ne2 {[%clk 0:02:42.1]} 9... Qc7 {[%clk 0:02:53]}
10. Bf4 {[%clk 0:02:41.2]} 10... e5 {[%clk 0:02:32]} 11. Bd2 {[%clk 0:02:39.4]}
11... g6 {[%clk 0:02:31.3]} 12. c3 {[%clk 0:02:33]} 12... bxc3 {[%clk
0:02:25.8]} 13. bxc3 {[%clk 0:02:33.9]} 13... Bg7 {[%clk 0:02:25.2]} 14. Qc1
{[%clk 0:02:28.4]} 14... O-O {[%clk 0:02:23.5]} 15. Bh6 {[%clk 0:02:28.6]} 15...
Rae8 {[%clk 0:02:17.8]} 16. Rb1 {[%clk 0:02:25]} 16... Ba8 {[%clk 0:02:17.7]}
17. Bxg7 {[%clk 0:02:11]} 17... Kxg7 {[%clk 0:02:17.6]} 18. Qa3 {[%clk
0:02:11.9]} 18... c4 {[%clk 0:02:14.9]} 19. Nd2 {[%clk 0:01:38.6]} 19... cxd3
{[%clk 0:02:12.1]} 20. Nc1 {[%clk 0:01:38.1]} 20... Nc5 {[%clk 0:02:11.6]} 21.
Rb4 {[%clk 0:01:34.8]} 21... Nfd7 {[%clk 0:01:40]} 22. Re3 {[%clk 0:01:25.4]}
22... f5 {[%clk 0:01:32.3]} 23. exf5 {[%clk 0:01:22]} 23... Bxg2 {[%clk
0:01:32.3]} 24. Kxg2 {[%clk 0:01:06.2]} 24... Qc6+ {[%clk 0:01:31.7]} 25. Kg1
{[%clk 0:01:04.8]} 25... e4 {[%clk 0:01:22.9]} 26. fxg6 {[%clk 0:01:04]} 26...
hxg6 {[%clk 0:01:17.9]} 27. Ncb3 {[%clk 0:00:55.4]} 27... d5 {[%clk 0:01:06]}
28. Nd4 {[%clk 0:00:53.8]} 28... Qf6 {[%clk 0:01:04.3]} 29. f4 {[%clk
0:00:43.8]} 29... exf3 {[%clk 0:01:03]} 30. Rxf3 {[%clk 0:00:42]} 30... Qe5
{[%clk 0:00:45]} 31. Kg2 {[%clk 0:00:16.4]} 31... Qe1 {[%clk 0:00:42.7]} 32.
Rxf8 {[%clk 0:00:11]} 32... Rxf8 {[%clk 0:00:42.7]} 33. N2f3 {[%clk 0:00:11.3]}
33... Rxf3 {[%clk 0:00:42.4]} 34. Nxf3 {[%clk 0:00:11.2]} 34... Qe2+ {[%clk
0:00:42.5]} 35. Kh3 {[%clk 0:00:11.1]} 35... Qxf3 {[%clk 0:00:42.9]} 36. Rf4
{[%clk 0:00:11]} 36... Qh5+ {[%clk 0:00:40.9]} 37. Kg2 {[%clk 0:00:11.2]} 37...
Qe2+ {[%clk 0:00:41.2]} 38. Rf2 {[%clk 0:00:11.3]} 38... Qe4+ {[%clk 0:00:41.4]}
39. Kg1 {[%clk 0:00:11.6]} 39... d2 {[%clk 0:00:41.8]} 40. Rxd2 {[%clk
0:00:10.8]} 40... Qe1+ {[%clk 0:00:39.6]} 41. Kg2 {[%clk 0:00:09.4]} 41... Qxd2+
{[%clk 0:00:39.9]} 42. Kh3 {[%clk 0:00:06.9]} 42... Kh6 {[%clk 0:00:25.1]} 43.
Qxa7 {[%clk 0:00:06.2]} 43... Ne4 {[%clk 0:00:21.6]} 0-1

[Event "Early-Titled-Tuesday-Blitz-February-27-2024"]
[Site "Chess.com"]
[Date "2024.02.27"]
[Round "2"]
[White "carloseduar100"]
[Black "rhungaski"]
[Result "1-0"]
[WhiteElo "2393"]
[BlackElo "2594"]
[TimeControl "180+1"]
[EndTime "8:17:31 PST"]
[Termination "carloseduar100 won on time"]

1. g3 {[%clk 0:02:59.5]} 1... g6 {[%clk 0:02:59]} 2. Bg2 {[%clk 0:03:00.4]} 2...
Bg7 {[%clk 0:02:59.8]} 3. Nf3 {[%clk 0:02:43.5]} 3... d6 {[%clk 0:02:59.2]} 4.
O-O {[%clk 0:02:44.4]} 4... Nf6 {[%clk 0:02:59]} 5. d4 {[%clk 0:02:44.3]} 5...
O-O {[%clk 0:02:59.7]} 6. c3 {[%clk 0:02:44.6]} 6... Nc6 {[%clk 0:03:00.4]} 7.
Nbd2 {[%clk 0:02:45]} 7... e5 {[%clk 0:03:00.6]} 8. Re1 {[%clk 0:02:43]} 8... e4
{[%clk 0:02:58.9]} 9. Ng5 {[%clk 0:02:43]} 9... d5 {[%clk 0:02:58.9]} 10. c4
{[%clk 0:02:43.2]} 10... Ng4 {[%clk 0:02:31.7]} 11. cxd5 {[%clk 0:02:37.6]}
11... Nxf2 {[%clk 0:02:29.8]} 12. Kxf2 {[%clk 0:02:27.5]} 12... e3+ {[%clk
0:02:06.6]} 13. Kg1 {[%clk 0:02:22.1]} 13... exd2 {[%clk 0:02:03.8]} 14. Qxd2
{[%clk 0:02:20.2]} 14... Nxd4 {[%clk 0:01:55.6]} 15. Nf3 {[%clk 0:02:14.2]}
15... Qxd5 {[%clk 0:01:34.5]} 16. Kh1 {[%clk 0:02:06.8]} 16... Qc5 {[%clk
0:00:53]} 17. Nxd4 {[%clk 0:01:54.1]} 17... Bxd4 {[%clk 0:00:53.9]} 18. b4
{[%clk 0:01:45]} 18... Qc3 {[%clk 0:00:51.7]} 19. Rb1 {[%clk 0:01:41.5]} 19...
Bf5 {[%clk 0:00:48.7]} 20. Rb3 {[%clk 0:01:41.6]} 20... Qc4 {[%clk 0:00:39.1]}
21. e3 {[%clk 0:01:13.2]} 21... Bg7 {[%clk 0:00:35.1]} 22. Bxb7 {[%clk 0:01:13]}
22... Rad8 {[%clk 0:00:34.7]} 23. Qg2 {[%clk 0:01:04.7]} 23... Bc2 {[%clk
0:00:23.3]} 24. Ra3 {[%clk 0:00:55.4]} 24... Qxb4 {[%clk 0:00:20.7]} 25. Rf1
{[%clk 0:00:38.3]} 25... Rd6 {[%clk 0:00:15.3]} 26. Bd5 {[%clk 0:00:21.7]} 26...
Bd3 {[%clk 0:00:15]} 27. Rxd3 {[%clk 0:00:18.4]} 27... Qb5 {[%clk 0:00:13.6]}
28. Rfd1 {[%clk 0:00:14.7]} 28... Rfd8 {[%clk 0:00:13.9]} 29. Ba3 {[%clk
0:00:11.8]} 29... R6d7 {[%clk 0:00:09.3]} 30. Qe4 {[%clk 0:00:07.6]} 30... Kh8
{[%clk 0:00:07.8]} 31. Bc4 {[%clk 0:00:04.7]} 31... Qa4 {[%clk 0:00:05.5]} 32.
Rxd7 {[%clk 0:00:03.9]} 32... Qxd1+ {[%clk 0:00:01.5]} 33. Rxd1 {[%clk
0:00:04.1]} 33... Rxd1+ {[%clk 0:00:02.2]} 34. Kg2 {[%clk 0:00:05]} 34... h5
{[%clk 0:00:02.1]} 35. Qe8+ {[%clk 0:00:05]} 35... Kh7 {[%clk 0:00:02.5]} 36.
Bxf7 {[%clk 0:00:05.9]} 36... Rd2+ {[%clk 0:00:02.7]} 37. Kf3 {[%clk 0:00:06.4]}
1-0

[Event "Early-Titled-Tuesday-Blitz-February-27-2024"]
[Site "Chess.com"]
[Date "2024.02.27"]
[Round "2"]
[White "TheoSlade"]
[Black "maciek_92"]
[Result "0-1"]
[WhiteElo "2421"]
[BlackElo "2835"]
[TimeControl "180+1"]
[EndTime "8:17:32 PST"]
[Termination "maciek_92 won on time"]

1. d4 {[%clk 0:03:00.9]} 1... Nf6 {[%clk 0:02:59.8]} 2. c4 {[%clk 0:03:01.2]}
2... d6 {[%clk 0:02:59.8]} 3. Nf3 {[%clk 0:03:00.5]} 3... Nbd7 {[%clk
0:03:00.1]} 4. Nc3 {[%clk 0:03:00.7]} 4... e5 {[%clk 0:03:00.5]} 5. e4 {[%clk
0:03:01.2]} 5... Be7 {[%clk 0:02:58.8]} 6. Be2 {[%clk 0:03:01.6]} 6... O-O
{[%clk 0:02:58.6]} 7. O-O {[%clk 0:03:02.2]} 7... Re8 {[%clk 0:02:56.8]} 8. Re1
{[%clk 0:02:55.6]} 8... Bf8 {[%clk 0:02:55]} 9. Bf1 {[%clk 0:02:53.8]} 9... exd4
{[%clk 0:02:53.1]} 10. Nxd4 {[%clk 0:02:54]} 10... Nc5 {[%clk 0:02:53.8]} 11. f3
{[%clk 0:02:52.8]} 11... a5 {[%clk 0:02:54.6]} 12. Be3 {[%clk 0:02:52.1]} 12...
c6 {[%clk 0:02:52.5]} 13. Qd2 {[%clk 0:02:51.8]} 13... d5 {[%clk 0:02:44.5]} 14.
exd5 {[%clk 0:02:48.1]} 14... cxd5 {[%clk 0:02:44.7]} 15. Bg5 {[%clk 0:02:37.3]}
15... Rxe1 {[%clk 0:02:38.4]} 16. Rxe1 {[%clk 0:02:37.4]} 16... dxc4 {[%clk
0:02:37.7]} 17. Bxc4 {[%clk 0:02:30.6]} 17... h6 {[%clk 0:01:34.1]} 18. Bh4
{[%clk 0:02:29.9]} 18... Qb6 {[%clk 0:01:30.9]} 19. Bxf6 {[%clk 0:02:23.2]}
19... Qxf6 {[%clk 0:01:31]} 20. Nd5 {[%clk 0:02:23.3]} 20... Qd8 {[%clk
0:01:22.2]} 21. Nb5 {[%clk 0:02:14]} 21... Be6 {[%clk 0:01:02.3]} 22. Nbc7
{[%clk 0:02:10.6]} 22... Rc8 {[%clk 0:01:02.1]} 23. Qf4 {[%clk 0:01:55.3]} 23...
Bxd5 {[%clk 0:00:57.3]} 24. Nxd5 {[%clk 0:01:53.1]} 24... Ne6 {[%clk 0:00:58]}
25. Qg4 {[%clk 0:01:44.4]} 25... Bc5+ {[%clk 0:00:40]} 26. Kh1 {[%clk
0:01:44.8]} 26... Bd4 {[%clk 0:00:40.6]} 27. b3 {[%clk 0:01:29.8]} 27... b5
{[%clk 0:00:39.1]} 28. Ne7+ {[%clk 0:00:51.1]} 28... Qxe7 {[%clk 0:00:38.6]} 29.
Rxe6 {[%clk 0:00:51.6]} 29... Qc7 {[%clk 0:00:21.8]} 30. Qxd4 {[%clk 0:00:32.1]}
30... bxc4 {[%clk 0:00:19.2]} 31. Re1 {[%clk 0:00:24.1]} 31... c3 {[%clk
0:00:18.9]} 32. Rc1 {[%clk 0:00:21.5]} 32... c2 {[%clk 0:00:19]} 33. Qd2 {[%clk
0:00:16.9]} 33... Rd8 {[%clk 0:00:18]} 34. Qe2 {[%clk 0:00:13.7]} 34... Qc3
{[%clk 0:00:16.7]} 35. h3 {[%clk 0:00:12.7]} 35... Rd2 {[%clk 0:00:14.4]} 36.
Qe8+ {[%clk 0:00:11.7]} 36... Kh7 {[%clk 0:00:15.1]} 37. Qe4+ {[%clk 0:00:12.3]}
37... g6 {[%clk 0:00:15.4]} 38. Kh2 {[%clk 0:00:10.5]} 38... Rxg2+ {[%clk
0:00:12.9]} 39. Kxg2 {[%clk 0:00:10.6]} 39... Qd2+ {[%clk 0:00:13.6]} 40. Kg3
{[%clk 0:00:10.1]} 40... Qxc1 {[%clk 0:00:14.2]} 41. Qc4 {[%clk 0:00:03.5]}
41... Qg1+ {[%clk 0:00:10.9]} 42. Kf4 {[%clk 0:00:03.8]} 42... c1=Q+ {[%clk
0:00:10.9]} 43. Qxc1 {[%clk 0:00:03.5]} 43... Qxc1+ {[%clk 0:00:11.8]} 0-1

[Event "Early-Titled-Tuesday-Blitz-February-27-2024"]
[Site "Chess.com"]
[Date "2024.02.27"]
[Round "2"]
[White "Akewjon"]
[Black "GP9isback23"]
[Result "0-1"]
[WhiteElo "2816"]
[BlackElo "2582"]
[TimeControl "180+1"]
[EndTime "8:17:34 PST"]
[Termination "GP9isback23 won on time"]

1. e4 {[%clk 0:01:44.3]} 1... c6 {[%clk 0:02:53]} 2. d4 {[%clk 0:01:43.6]} 2...
d5 {[%clk 0:02:53.7]} 3. exd5 {[%clk 0:01:42.9]} 3... cxd5 {[%clk 0:02:53.9]} 4.
Bd3 {[%clk 0:01:43.6]} 4... Nc6 {[%clk 0:02:53.2]} 5. c3 {[%clk 0:01:43.7]} 5...
g6 {[%clk 0:02:53.8]} 6. Qc2 {[%clk 0:01:42.8]} 6... Nh6 {[%clk 0:02:53.9]} 7.
Nf3 {[%clk 0:01:30.8]} 7... Bf5 {[%clk 0:02:53.6]} 8. O-O {[%clk 0:01:30.8]}
8... Bxd3 {[%clk 0:02:52.1]} 9. Qxd3 {[%clk 0:01:30.9]} 9... Nf5 {[%clk
0:02:52.8]} 10. Re1 {[%clk 0:01:30.6]} 10... Bg7 {[%clk 0:02:53.1]} 11. Bf4
{[%clk 0:01:29.6]} 11... O-O {[%clk 0:02:52.7]} 12. Nbd2 {[%clk 0:01:29.7]}
12... a6 {[%clk 0:02:52.7]} 13. h4 {[%clk 0:01:23.2]} 13... h5 {[%clk
0:02:49.6]} 14. g3 {[%clk 0:01:21.1]} 14... Rc8 {[%clk 0:02:46.8]} 15. Ne5
{[%clk 0:01:08.5]} 15... Nxe5 {[%clk 0:02:45.1]} 16. Bxe5 {[%clk 0:01:09.1]}
16... Bxe5 {[%clk 0:02:45.4]} 17. Rxe5 {[%clk 0:01:10]} 17... e6 {[%clk
0:02:45.9]} 18. a4 {[%clk 0:01:04]} 18... a5 {[%clk 0:02:41.3]} 19. Nb3 {[%clk
0:01:01]} 19... b6 {[%clk 0:02:41.2]} 20. Nd2 {[%clk 0:00:59.3]} 20... Qd7
{[%clk 0:02:39.7]} 21. Kg2 {[%clk 0:00:56]} 21... Rfe8 {[%clk 0:02:39.7]} 22. f3
{[%clk 0:00:55.1]} 22... Kg7 {[%clk 0:02:39]} 23. Nf1 {[%clk 0:00:49]} 23... Re7
{[%clk 0:02:34.6]} 24. Re2 {[%clk 0:00:47.3]} 24... f6 {[%clk 0:02:30.9]} 25.
Ne3 {[%clk 0:00:47.2]} 25... Nd6 {[%clk 0:02:16.1]} 26. Rae1 {[%clk 0:00:46]}
26... Rce8 {[%clk 0:02:13.6]} 27. Qc2 {[%clk 0:00:44.5]} 27... Nf5 {[%clk
0:02:05.2]} 28. Nd1 {[%clk 0:00:38.4]} 28... Qc7 {[%clk 0:01:55.6]} 29. f4
{[%clk 0:00:37.5]} 29... Nd6 {[%clk 0:01:52.7]} 30. Nf2 {[%clk 0:00:37.4]} 30...
f5 {[%clk 0:01:51]} 31. Re5 {[%clk 0:00:35.5]} 31... Ne4 {[%clk 0:01:51.1]} 32.
Nxe4 {[%clk 0:00:35.3]} 32... dxe4 {[%clk 0:01:35.7]} 33. Qb3 {[%clk 0:00:34.7]}
33... Kh7 {[%clk 0:01:33.1]} 34. Rd1 {[%clk 0:00:33.2]} 34... Qc6 {[%clk
0:01:31.9]} 35. Qb5 {[%clk 0:00:31.1]} 35... Qc7 {[%clk 0:01:28.5]} 36. d5
{[%clk 0:00:24.1]} 36... exd5 {[%clk 0:01:24.6]} 37. Rexd5 {[%clk 0:00:25]}
37... e3 {[%clk 0:01:23]} 38. Re1 {[%clk 0:00:16.3]} 38... e2 {[%clk 0:01:22.1]}
39. Qd3 {[%clk 0:00:13.8]} 39... Qc6 {[%clk 0:01:16.4]} 40. Kf2 {[%clk
0:00:13.7]} 40... Re3 {[%clk 0:01:13.5]} 41. Qd4 {[%clk 0:00:11.6]} 41... R3e7
{[%clk 0:01:04.9]} 42. Rd6 {[%clk 0:00:10.9]} 42... Qc7 {[%clk 0:00:48.5]} 43.
Qxb6 {[%clk 0:00:10.9]} 43... Qc4 {[%clk 0:00:39.5]} 44. Rxg6 {[%clk 0:00:10.8]}
44... Qf7 {[%clk 0:00:30.5]} 45. Rd6 {[%clk 0:00:07.2]} 45... Qg7 {[%clk
0:00:30.5]} 46. Qd4 {[%clk 0:00:07.5]} 46... Qg4 {[%clk 0:00:29.6]} 47. Qf6
{[%clk 0:00:04.2]} 47... Rg7 {[%clk 0:00:24.6]} 0-1

[Event "Early-Titled-Tuesday-Blitz-February-27-2024"]
[Site "Chess.com"]
[Date "2024.02.27"]
[Round "2"]
[White "ExtremeLearner"]
[Black "Vse_po_kaify"]
[Result "0-1"]
[WhiteElo "2549"]
[BlackElo "2189"]
[TimeControl "180+1"]
[EndTime "8:17:35 PST"]
[Termination "Vse_po_kaify won by resignation"]

1. e4 {[%clk 0:03:00.9]} 1... c5 {[%clk 0:02:57.2]} 2. Nc3 {[%clk 0:02:57.7]}
2... Nc6 {[%clk 0:02:56.5]} 3. Bb5 {[%clk 0:02:55.5]} 3... e5 {[%clk 0:02:54.5]}
4. d3 {[%clk 0:02:34.8]} 4... Nge7 {[%clk 0:02:51.7]} 5. Nf3 {[%clk 0:02:24.4]}
5... g6 {[%clk 0:02:49.3]} 6. h4 {[%clk 0:02:16.9]} 6... h6 {[%clk 0:02:48.1]}
7. a3 {[%clk 0:02:02.6]} 7... Bg7 {[%clk 0:02:45.2]} 8. Be3 {[%clk 0:01:50.7]}
8... d6 {[%clk 0:02:42.7]} 9. Nd5 {[%clk 0:01:41.3]} 9... O-O {[%clk 0:02:39.6]}
10. Qd2 {[%clk 0:01:21.5]} 10... Kh7 {[%clk 0:02:34]} 11. h5 {[%clk 0:01:06.6]}
11... g5 {[%clk 0:02:30.5]} 12. Bxg5 {[%clk 0:01:04]} 12... f6 {[%clk
0:02:11.7]} 13. Be3 {[%clk 0:00:57.2]} 13... Nxd5 {[%clk 0:02:08]} 14. exd5
{[%clk 0:00:57]} 14... Nd4 {[%clk 0:02:08.9]} 15. Bxd4 {[%clk 0:00:50.4]} 15...
cxd4 {[%clk 0:02:09]} 16. c3 {[%clk 0:00:44.1]} 16... a6 {[%clk 0:02:09]} 17.
Ba4 {[%clk 0:00:43.3]} 17... f5 {[%clk 0:02:07.4]} 18. Bc2 {[%clk 0:00:40.9]}
18... b5 {[%clk 0:02:05.9]} 19. O-O {[%clk 0:00:32.1]} 19... Bb7 {[%clk
0:01:59.9]} 20. cxd4 {[%clk 0:00:31.4]} 20... exd4 {[%clk 0:02:00.4]} 21. Qf4
{[%clk 0:00:31.1]} 21... Qf6 {[%clk 0:01:55.8]} 22. Bb3 {[%clk 0:00:27.8]} 22...
Rae8 {[%clk 0:01:53.2]} 23. Rae1 {[%clk 0:00:28.1]} 23... a5 {[%clk 0:01:40.8]}
24. Nh4 {[%clk 0:00:23.2]} 24... Re5 {[%clk 0:01:39.2]} 25. Ng6 {[%clk
0:00:21.5]} 25... Rfe8 {[%clk 0:01:39.2]} 26. Nxe5 {[%clk 0:00:19.8]} 26... dxe5
{[%clk 0:01:40.1]} 27. Qg3 {[%clk 0:00:19.8]} 27... a4 {[%clk 0:01:32]} 28. Ba2
{[%clk 0:00:19.4]} 28... Qd6 {[%clk 0:01:28.7]} 29. Rc1 {[%clk 0:00:17]} 29...
Kh8 {[%clk 0:01:18.9]} 30. Qg6 {[%clk 0:00:16.3]} 30... Rd8 {[%clk 0:01:00.5]}
31. Qxd6 {[%clk 0:00:13.7]} 31... Rxd6 {[%clk 0:01:01.4]} 32. Rc5 {[%clk
0:00:14.6]} 32... e4 {[%clk 0:00:59.3]} 33. Rxb5 {[%clk 0:00:14]} 33... Ba6
{[%clk 0:00:58.8]} 34. Rb8+ {[%clk 0:00:14.4]} 34... Kh7 {[%clk 0:00:59.3]} 35.
Rd1 {[%clk 0:00:12.1]} 35... Bxd3 {[%clk 0:00:57.7]} 36. Rc8 {[%clk 0:00:12.1]}
36... Be2 {[%clk 0:00:56.1]} 37. Rd2 {[%clk 0:00:11.9]} 37... d3 {[%clk
0:00:55.8]} 38. Rc6 {[%clk 0:00:12.2]} 38... Rd8 {[%clk 0:00:51.9]} 39. d6
{[%clk 0:00:10.6]} 39... Be5 {[%clk 0:00:52]} 40. Rc7+ {[%clk 0:00:08.5]} 40...
Kh8 {[%clk 0:00:51.1]} 41. g3 {[%clk 0:00:06.5]} 41... Bxg3 {[%clk 0:00:44]} 42.
fxg3 {[%clk 0:00:05.5]} 42... e3 {[%clk 0:00:44.3]} 43. Rxe2 {[%clk 0:00:05.8]}
43... dxe2 {[%clk 0:00:45.2]} 44. Rc1 {[%clk 0:00:06.2]} 44... Rxd6 {[%clk
0:00:44.6]} 45. Kg2 {[%clk 0:00:03.3]} 45... Rd1 {[%clk 0:00:43.6]} 46. Rc8+
{[%clk 0:00:03.7]} 46... Kg7 {[%clk 0:00:43.1]} 47. Rc7+ {[%clk 0:00:04.5]}
47... Kf8 {[%clk 0:00:39.3]} 48. Rc8+ {[%clk 0:00:03]} 48... Ke7 {[%clk
0:00:39]} 49. Rc7+ {[%clk 0:00:03.9]} 49... Kd8 {[%clk 0:00:39.2]} 0-1

[Event "Early-Titled-Tuesday-Blitz-February-27-2024"]
[Site "Chess.com"]
[Date "2024.02.27"]
[Round "2"]
[White "Chemim21"]
[Black "AsaHoffmann"]
[Result "1-0"]
[WhiteElo "2217"]
[BlackElo "2473"]
[TimeControl "180+1"]
[EndTime "8:17:36 PST"]
[Termination "Chemim21 won by checkmate"]

1. e4 {[%clk 0:03:00.9]} 1... d6 {[%clk 0:02:58]} 2. d4 {[%clk 0:03:00]} 2...
Nf6 {[%clk 0:02:57.7]} 3. Nc3 {[%clk 0:03:00.4]} 3... c6 {[%clk 0:02:57.3]} 4.
f4 {[%clk 0:03:00.1]} 4... Qa5 {[%clk 0:02:56.3]} 5. Bd3 {[%clk 0:02:57.9]} 5...
e5 {[%clk 0:02:55.8]} 6. Nf3 {[%clk 0:02:42.1]} 6... exd4 {[%clk 0:02:54.8]} 7.
Nxd4 {[%clk 0:02:40]} 7... Qb6 {[%clk 0:02:54.3]} 8. Nf3 {[%clk 0:02:27.5]} 8...
Be7 {[%clk 0:02:52.4]} 9. Qe2 {[%clk 0:02:27.1]} 9... O-O {[%clk 0:02:51.5]} 10.
Qf2 {[%clk 0:02:21.8]} 10... d5 {[%clk 0:02:42.7]} 11. Qxb6 {[%clk 0:02:15.8]}
11... axb6 {[%clk 0:02:42.4]} 12. e5 {[%clk 0:02:13.9]} 12... Ne8 {[%clk
0:02:31.4]} 13. Be3 {[%clk 0:02:13.1]} 13... b5 {[%clk 0:02:26.9]} 14. O-O
{[%clk 0:01:59.2]} 14... Nd7 {[%clk 0:02:24.7]} 15. a3 {[%clk 0:01:51.4]} 15...
Bc5 {[%clk 0:02:23.2]} 16. Bxc5 {[%clk 0:01:48.3]} 16... Nxc5 {[%clk 0:02:23]}
17. Nd4 {[%clk 0:01:46.5]} 17... Nxd3 {[%clk 0:02:17.4]} 18. cxd3 {[%clk
0:01:46]} 18... Nc7 {[%clk 0:02:15.5]} 19. f5 {[%clk 0:01:42.5]} 19... Re8
{[%clk 0:02:14.2]} 20. Rae1 {[%clk 0:01:41.2]} 20... Bd7 {[%clk 0:02:10.1]} 21.
Nb3 {[%clk 0:01:34.4]} 21... b6 {[%clk 0:01:58.8]} 22. d4 {[%clk 0:01:34.4]}
22... Na6 {[%clk 0:01:56.7]} 23. Nd2 {[%clk 0:01:32.3]} 23... b4 {[%clk
0:01:56.5]} 24. axb4 {[%clk 0:01:31.5]} 24... Nxb4 {[%clk 0:01:56.4]} 25. g4
{[%clk 0:01:17.6]} 25... Nc2 {[%clk 0:01:54.9]} 26. Nf3 {[%clk 0:01:08.6]} 26...
Nxe1 {[%clk 0:01:53.8]} 27. Rxe1 {[%clk 0:01:08.2]} 27... b5 {[%clk 0:01:49.7]}
28. Kf2 {[%clk 0:01:01.6]} 28... b4 {[%clk 0:01:49.3]} 29. Ne2 {[%clk
0:01:00.5]} 29... Ra2 {[%clk 0:01:48.8]} 30. Rb1 {[%clk 0:01:00.3]} 30... h6
{[%clk 0:01:47.9]} 31. Nc1 {[%clk 0:00:59.4]} 31... Ra4 {[%clk 0:01:45.4]} 32.
Nd3 {[%clk 0:00:58]} 32... Rea8 {[%clk 0:01:41.2]} 33. Nc5 {[%clk 0:00:57.5]}
33... R4a7 {[%clk 0:01:40.7]} 34. e6 {[%clk 0:00:52.9]} 34... fxe6 {[%clk
0:01:38.9]} 35. Ne5 {[%clk 0:00:52.4]} 35... Be8 {[%clk 0:01:34.5]} 36. fxe6
{[%clk 0:00:53.3]} 36... Ra1 {[%clk 0:01:31.7]} 37. Rxa1 {[%clk 0:00:51.9]}
37... Rxa1 {[%clk 0:01:31]} 38. Ned3 {[%clk 0:00:50.7]} 38... Kf8 {[%clk
0:01:20.8]} 39. Nxb4 {[%clk 0:00:48.6]} 39... Rd1 {[%clk 0:01:17.5]} 40. Nbd3
{[%clk 0:00:46.2]} 40... Ke7 {[%clk 0:01:14.2]} 41. h4 {[%clk 0:00:43.1]} 41...
g5 {[%clk 0:01:09.1]} 42. hxg5 {[%clk 0:00:41.9]} 42... hxg5 {[%clk 0:01:08.9]}
43. Ke2 {[%clk 0:00:38.1]} 43... Rg1 {[%clk 0:01:07.7]} 44. Kf3 {[%clk
0:00:37.4]} 44... Bg6 {[%clk 0:01:06.9]} 45. Ne5 {[%clk 0:00:37.2]} 45... Be4+
{[%clk 0:01:06.3]} 46. Kf2 {[%clk 0:00:37.2]} 46... Rb1 {[%clk 0:01:02.9]} 47.
Nxc6+ {[%clk 0:00:34.7]} 47... Ke8 {[%clk 0:01:02.8]} 48. b4 {[%clk 0:00:32.3]}
48... Rb2+ {[%clk 0:00:53.2]} 49. Ke3 {[%clk 0:00:32]} 49... Rg2 {[%clk
0:00:51]} 50. Nxe4 {[%clk 0:00:31.6]} 50... dxe4 {[%clk 0:00:51.1]} 51. Kxe4
{[%clk 0:00:31.8]} 51... Rxg4+ {[%clk 0:00:50.8]} 52. Kf5 {[%clk 0:00:31.3]}
52... Rg1 {[%clk 0:00:49.5]} 53. d5 {[%clk 0:00:31.5]} 53... g4 {[%clk
0:00:48.5]} 54. d6 {[%clk 0:00:31]} 54... Rd1 {[%clk 0:00:47.6]} 55. d7+ {[%clk
0:00:30.9]} 55... Rxd7 {[%clk 0:00:47]} 56. exd7+ {[%clk 0:00:31.1]} 56... Kxd7
{[%clk 0:00:47.2]} 57. Ne5+ {[%clk 0:00:31.4]} 57... Kd6 {[%clk 0:00:46.5]} 58.
Nxg4 {[%clk 0:00:30.5]} 58... Kd5 {[%clk 0:00:46.5]} 59. Ne5 {[%clk 0:00:27.6]}
59... Kd6 {[%clk 0:00:45.7]} 60. Nd3 {[%clk 0:00:27.2]} 60... Kd5 {[%clk
0:00:44.9]} 61. Kf4 {[%clk 0:00:27.5]} 61... Kc4 {[%clk 0:00:45]} 62. Ke3 {[%clk
0:00:27.6]} 62... Kb5 {[%clk 0:00:45]} 63. Kd4 {[%clk 0:00:27.6]} 63... Kc6
{[%clk 0:00:45.1]} 64. Kc4 {[%clk 0:00:27.7]} 64... Kb6 {[%clk 0:00:45.2]} 65.
b5 {[%clk 0:00:28.6]} 65... Kc7 {[%clk 0:00:45]} 66. Nb4 {[%clk 0:00:29.4]}
66... Kb7 {[%clk 0:00:45.2]} 67. Nd5 {[%clk 0:00:29.9]} 67... Kb8 {[%clk
0:00:44.9]} 68. Kc5 {[%clk 0:00:30.7]} 68... Kb7 {[%clk 0:00:45.1]} 69. b6
{[%clk 0:00:31.6]} 69... Ka6 {[%clk 0:00:45.3]} 70. Kc6 {[%clk 0:00:31.7]} 70...
Ka5 {[%clk 0:00:44.1]} 71. b7 {[%clk 0:00:32]} 71... Ka4 {[%clk 0:00:44.4]} 72.
b8=Q {[%clk 0:00:31.7]} 72... Ka3 {[%clk 0:00:44.1]} 73. Qb1 {[%clk 0:00:31.4]}
73... Ka4 {[%clk 0:00:43.4]} 74. Qb4# {[%clk 0:00:32.1]} 1-0